bitfinex/quotes_SOLUSD_20250313
["timestamp","ask_amount","ask_price","bid_price","bid_amount"]
[1741887423917,37.83501465,121.99,121.94,37.83501465]
[1741887425033,37.83501465,121.97,121.92,39.36711465]
[1741887425197,37.83501465,121.96,121.89,0.14216157]
[1741887425528,28.6931,121.98,121.93,37.83501465]
[1741887425529,46.03301465,121.98,121.93,37.83501465]
[1741887425826,16.8374,121.99,121.95,37.83501465]
[1741887426129,16.8374,121.99,121.96,37.83501465]
[1741887426318,16.8374,121.99,121.95,37.83501465]
[1741887426511,37.83501465,121.98,121.93,37.83501465]
[1741887426706,37.83501465,121.97,121.92,37.83501465]
[1741887426911,16.8374,121.99,121.91,37.83501465]
[1741887426912,8.2,121.95,121.91,37.83501465]
[1741887427313,46.03501465,121.95,121.9,37.83501465]
[1741887427839,37.83501465,121.94,121.89,37.83501465]
[1741887428132,66.53521465,121.95,121.9,37.83501465]
[1741887428937,8.2,121.95,121.91,37.83501465]
[1741887429285,37.83501465,121.94,121.88,82.5918]
[1741887429543,66.53521465,121.95,121.9,37.83501465]
[1741887429714,66.53521465,121.95,121.91,37.83501465]
[1741887429715,28.7002,121.95,121.91,37.83501465]
[1741887429916,8.2,121.95,121.91,37.83501465]
[1741887430143,8.2,121.95,121.92,37.83501465]
[1741887430642,8.2,121.95,121.91,37.83501465]
[1741887431138,28.7002,121.95,121.91,37.83501465]
[1741887431435,66.53521465,121.95,121.9,37.83501465]
[1741887432040,28.7002,121.95,121.9,37.83501465]
[1741887432427,37.83501465,121.94,121.88,1.5918]
[1741887432622,37.83501465,121.92,121.87,37.83501465]
[1741887432820,37.83501465,121.93,121.88,37.83501465]
[1741887433023,28.7072,121.92,121.88,37.83501465]
[1741887433725,28.7072,121.92,121.85,0.17216157]
[1741887433931,28.7072,121.92,121.87,37.83501465]
[1741887434129,66.54221465,121.92,121.86,37.83501465]
[1741887434329,66.54221465,121.92,121.85,0.03]
[1741887434330,6.0077,121.9,121.85,0.03]
[1741887434546,37.83501465,121.88,121.85,0.03]
[1741887434749,20.0,121.86,121.85,0.03]
[1741887434951,20.0,121.84,121.83,0.03]
[1741887435152,66.53501465,121.84,121.83,0.03]
[1741887435359,36.9074,121.84,121.83,0.03]
[1741887435533,16.9074,121.84,121.83,0.03]
[1741887439159,217.02,121.87,121.83,37.86501465]
[1741887439449,225.2256,121.87,121.85,37.83501465]
[1741887440051,225.2256,121.87,121.83,0.03]
[1741887440229,225.2256,121.87,121.86,37.83501465]
[1741887440430,217.02,121.87,121.86,37.83501465]
[1741887441249,225.2254,121.87,121.85,37.83501465]
[1741887441446,225.2254,121.87,121.84,37.83501465]
[1741887441745,225.2254,121.87,121.84,37.33501465]
[1741887442044,225.2254,121.87,121.83,0.03]
[1741887442045,225.2254,121.87,121.85,37.83501465]
[1741887444352,225.2254,121.87,121.83,37.86501465]
[1741887444855,225.2254,121.87,121.83,0.03]
[1741887444856,37.83501465,121.85,121.83,0.03]
[1741887445037,46.45501465,121.84,121.83,0.03]
[1741887445229,54.66241465,121.84,121.83,0.03]
[1741887446347,16.8274,121.84,121.83,0.03]
[1741887446554,8.62,121.84,121.83,0.03]
[1741887447458,8.62,121.84,121.83,37.83501465]
[1741887447630,217.083,121.87,121.83,37.83501465]
[1741887448043,263.12361465,121.87,121.82,37.83501465]
[1741887448426,225.2886,121.87,121.82,37.83501465]
[1741887448625,225.2886,121.87,121.83,37.83501465]
[1741887449259,225.2886,121.87,121.82,37.83501465]
[1741887449260,263.12361465,121.87,121.82,37.83501465]
[1741887449652,225.2886,121.87,121.82,37.83501465]
[1741887450159,225.2886,121.87,121.83,37.83501465]
[1741887450459,217.083,121.87,121.86,37.83501465]
[1741887450657,217.083,121.87,121.85,37.83501465]
[1741887450837,225.2884,121.87,121.83,37.83501465]
[1741887451040,37.83501465,121.86,121.81,118.86501465]
[1741887451241,263.12341465,121.87,121.82,37.83501465]
[1741887451449,263.12341465,121.87,121.81,81.03]
[1741887451450,225.2884,121.87,121.83,37.83501465]
[1741887451778,217.083,121.87,121.84,37.83501465]
[1741887451958,225.2884,121.87,121.84,37.83501465]
[1741887452133,225.2884,121.87,121.83,37.83501465]
[1741887454269,217.083,121.87,121.85,37.83501465]
[1741887458365,0.063,121.87,121.85,37.83501465]
[1741887458665,0.063,121.87,121.86,37.83501465]
[1741887459171,0.0001,121.87,121.86,312.6040013]
[1741887459353,8.1997,121.96,121.88,0.14216157]
[1741887459664,8.1997,121.96,121.92,37.83501465]
[1741887461145,8.1997,121.96,121.9,8.2028]
[1741887461146,8.1997,121.96,121.93,37.83501465]
[1741887461971,37.83501465,121.99,121.94,37.83501465]
[1741887462163,8.1977,121.99,121.96,37.83501465]
[1741887462345,8.2599,122.0,121.96,37.83501465]
[1741887463159,46.09491465,122.0,121.95,37.83501465]
[1741887464272,8.2599,122.0,121.96,37.83501465]
[1741887464469,8.2599,122.0,121.93,8.34356157]
[1741887464470,8.2597,122.0,121.97,37.83501465]
[1741887464768,8.2597,122.0,121.96,37.83501465]
[1741887465155,8.2597,122.0,121.97,37.83501465]
[1741887465356,8.2597,122.0,121.96,37.83501465]
[1741887466665,8.2597,122.0,121.97,37.83501465]
[1741887467070,0.063,122.0,121.98,37.83501465]
[1741887467761,0.063,122.0,121.99,37.83501465]
[1741887470677,0.063,122.0,121.98,37.83501465]
[1741887472278,0.063,122.0,121.99,37.97717622]
[1741887472460,0.063,122.0,121.99,37.83501465]
[1741887472794,0.063,122.0,121.97,37.83501465]
[1741887473458,0.063,122.0,121.96,37.83501465]
[1741887473678,37.83501465,121.99,121.95,37.83501465]
[1741887473992,0.063,122.0,121.97,37.83501465]
[1741887474296,0.063,122.0,121.98,37.83501465]
[1741887474861,0.063,122.0,121.99,37.83501465]
[1741887476266,0.063,122.0,121.99,46.03231465]
[1741887479082,0.063,122.0,121.99,37.83501465]
[1741887479285,0.063,122.0,121.97,174.83501465]
[1741887479686,0.063,122.0,121.98,37.83501465]
[1741887480085,0.063,122.0,121.99,37.83501465]
[1741887481288,0.063,122.0,121.98,37.83501465]
[1741887481883,37.83501465,121.99,121.94,8.2007]
[1741887482086,37.83501465,121.99,121.94,46.03571465]
[1741887482266,37.83501465,121.99,121.94,37.83501465]
[1741887482465,37.89801465,122.0,121.95,37.83501465]
[1741887482668,37.83501465,121.97,121.93,1.5602]
[1741887482986,46.09501465,122.0,121.95,37.83501465]
[1741887483580,8.26,122.0,121.95,37.83501465]
[1741887483885,0.063,122.0,121.97,37.83501465]
[1741887484189,46.09481465,122.0,121.95,37.83501465]
[1741887484379,37.83501465,121.99,121.94,37.83501465]
[1741887484581,37.83501465,121.97,121.93,1.5602]
[1741887484990,37.83501465,121.98,121.93,37.83501465]
[1741887485185,37.83501465,121.98,121.91,8.2027]
[1741887485370,37.83501465,121.98,121.93,37.83501465]
[1741887485771,37.83501465,121.98,121.91,8.2027]
[1741887485976,37.83501465,121.98,121.93,37.83501465]
[1741887486173,8.1973,121.99,121.94,37.83501465]
[1741887486378,46.03231465,121.99,121.94,37.83501465]
[1741887486579,37.83501465,121.98,121.91,8.2027]
[1741887486786,37.83501465,121.98,121.93,37.83501465]
[1741887487286,8.1984,121.98,121.94,37.83501465]
[1741887487594,46.03341465,121.98,121.93,37.83501465]
[1741887487782,46.03341465,121.98,121.91,8.2027]
[1741887487783,8.1984,121.98,121.94,37.83501465]
[1741887488089,46.03341465,121.98,121.91,8.2027]
[1741887488282,46.03341465,121.98,121.93,37.83501465]
[1741887489482,46.03341465,121.98,121.91,0.14216157]
[1741887489795,46.03341465,121.98,121.93,37.83501465]
[1741887490176,46.03341465,121.98,121.91,8.2027]
[1741887490368,46.03341465,121.98,121.93,37.83501465]
[1741887490788,46.03341465,121.98,121.91,8.2027]
[1741887491091,262.93261465,121.99,121.94,37.83501465]
[1741887491291,262.93261465,121.99,121.91,28.7096]
[1741887491292,216.9,121.99,121.96,37.83501465]
[1741887491469,216.9,121.99,121.95,37.83501465]
[1741887491470,225.0974,121.99,121.95,37.83501465]
[1741887491674,262.93241465,121.99,121.94,37.83501465]
[1741887491976,262.93241465,121.99,121.95,37.83501465]
[1741887491977,216.9,121.99,121.95,37.83501465]
[1741887492189,216.9,121.99,121.97,37.83501465]
[1741887492791,216.9,121.99,121.98,37.83501465]
[1741887493283,216.9,121.99,121.98,83.8680293]
[1741887493611,0.063,122.0,121.98,46.03301465]
[1741887493903,0.063,122.0,121.98,349.83501465]
[1741887494321,8.2598,122.0,121.96,37.83501465]
[1741887494491,8.2598,122.0,121.95,46.03471465]
[1741887494800,8.543,122.0,121.96,37.83501465]
[1741887495177,8.543,122.0,121.93,28.84686157]
[1741887495178,8.543,122.0,121.97,37.83501465]
[1741887495379,8.543,122.0,121.97,46.03361465]
[1741887495601,8.543,122.0,121.98,37.83501465]
[1741887496701,8.543,122.0,121.97,37.83501465]
[1741887496883,16.7397,122.0,121.97,37.83501465]
[1741887497600,8.543,122.0,121.97,37.83501465]
[1741887497803,8.543,122.0,121.98,37.83501465]
[1741887498986,8.543,122.0,121.97,37.83501465]
[1741887500110,16.7399,122.0,121.97,37.83501465]
[1741887500286,16.7399,122.0,121.96,37.83501465]
[1741887500486,16.7399,122.0,121.97,37.83501465]
[1741887501709,16.7399,122.0,121.96,37.83501465]
[1741887501910,37.83501465,121.99,121.94,37.83501465]
[1741887502223,54.57491465,122.0,121.95,37.83501465]
[1741887502426,16.7399,122.0,121.95,23.6454306]
[1741887503012,8.543,122.0,121.97,23.6454306]
[1741887503213,16.7398,122.0,121.94,393.14216157]
[1741887503412,16.7398,122.0,121.97,23.6454306]
[1741887503696,8.543,122.0,121.97,23.6454306]
[1741887503896,40.3852306,122.0,121.94,81.0]
[1741887504097,40.3852306,122.0,121.95,23.6454306]
[1741887504354,8.543,122.0,121.97,23.6454306]
[1741887504513,8.543,122.0,121.98,23.6454306]
[1741887504705,8.543,122.0,121.97,23.6454306]
[1741887504898,16.7398,122.0,121.96,23.6454306]
[1741887505116,40.3852306,122.0,121.95,23.6454306]
[1741887505508,23.6454306,121.98,121.93,218.0]
[1741887505694,40.3852306,122.0,121.95,31.8453306]
[1741887505901,40.3852306,122.0,121.95,23.6454306]
[1741887506202,257.2652306,122.0,121.95,23.6454306]
[1741887507017,233.6198,122.0,121.95,23.6454306]
[1741887507201,257.2652306,122.0,121.94,23.6454306]
[1741887507402,23.6454306,121.99,121.94,23.6454306]
[1741887507602,257.2652306,122.0,121.94,23.6454306]
[1741887508018,277.7570306,122.0,121.94,23.6454306]
[1741887508198,23.6454306,121.99,121.94,23.6454306]
[1741887508804,23.6454306,121.97,121.92,23.6454306]
[1741887509105,23.6454306,121.94,121.88,8.2047]
[1741887509305,23.6454306,121.92,121.87,23.6754306]
[1741887510105,23.6454306,121.92,121.87,31.8808306]
[1741887510423,23.6454306,121.92,121.88,23.6454306]
[1741887510726,8.2014,121.93,121.89,23.6454306]
[1741887510903,32.1254306,121.94,121.91,23.6454306]
[1741887510904,8.48,121.94,121.91,23.6454306]
[1741887511931,8.48,121.94,121.87,421.749]
[1741887511932,16.6809,121.94,121.9,23.6454306]
[1741887512109,40.3263306,121.94,121.89,23.6454306]
[1741887512305,23.6454306,121.93,121.88,23.6454306]
[1741887512506,23.6454306,121.92,121.87,31.8808306]
[1741887512714,23.6454306,121.93,121.89,23.6454306]
[1741887513030,23.6454306,121.93,121.88,23.6454306]
[1741887514248,8.202,121.92,121.88,23.6454306]
[1741887514543,31.8474306,121.92,121.87,23.6754306]
[1741887515213,31.8474306,121.92,121.87,0.03]
[1741887515214,23.6454306,121.91,121.87,0.03]
[1741887515529,240.6054306,121.9,121.87,0.03]
[1741887515729,216.96,121.9,121.87,23.6754306]
[1741887515940,216.96,121.9,121.87,0.03]
[1741887516239,240.6054306,121.9,121.87,0.03]
[1741887516436,8.2041,121.89,121.87,0.03]
[1741887516639,23.6454306,121.88,121.87,0.03]
[1741887517734,42.29507946,121.88,121.87,0.03]
[1741887517948,23.6454306,121.86,121.81,23.6754306]
[1741887518103,23.6454306,121.85,121.81,0.03]
[1741887518306,31.8524306,121.85,121.81,0.03]
[1741887518508,8.207,121.85,121.81,23.6754306]
[1741887519517,8.2057,121.87,121.83,23.6454306]
[1741887519927,31.8511306,121.87,121.81,0.03]
[1741887520229,31.8511306,121.87,121.82,23.6454306]
[1741887520425,8.2068,121.85,121.82,23.6454306]
[1741887520724,23.6454306,121.87,121.82,23.6454306]
[1741887520927,23.6454306,121.85,121.81,0.03]
[1741887521629,8.2064,121.86,121.82,23.6454306]
[1741887521813,8.2064,121.86,121.81,0.03]
[1741887522020,8.2064,121.86,121.82,23.6454306]
[1741887522220,31.8518306,121.86,121.81,23.6754306]
[1741887523635,8.2064,121.86,121.82,23.6454306]
[1741887525134,8.2064,121.86,121.82,31.8541306]
[1741887525525,8.2057,121.87,121.84,23.6454306]
[1741887525926,8.2057,121.87,121.83,23.6454306]
[1741887526320,8.2048,121.88,121.84,23.6454306]
[1741887526521,16.6848,121.88,121.84,23.6454306]
[1741887527038,31.8502306,121.88,121.84,23.6454306]
[1741887527330,16.6848,121.88,121.84,23.6454306]
[1741887527530,23.6454306,121.87,121.82,23.6454306]
[1741887528539,8.2061,121.86,121.82,23.6454306]
[1741887529333,8.2061,121.86,121.83,23.6454306]
[1741887530228,8.2061,121.86,121.82,23.6454306]
[1741887530434,225.3057,121.87,121.83,23.6454306]
[1741887530627,217.1,121.87,121.83,31.8534306]
[1741887530934,225.3055,121.87,121.84,23.6454306]
[1741887531122,225.3055,121.87,121.83,23.6454306]
[1741887531318,225.3055,121.87,121.83,23.6754306]
[1741887532736,225.3055,121.87,121.83,0.03]
[1741887532737,248.9509306,121.87,121.83,0.03]
[1741887533434,225.3055,121.87,121.83,23.6754306]
[1741887533832,217.1,121.87,121.84,23.6454306]
[1741887534444,225.3054,121.87,121.84,23.6454306]
[1741887534638,217.1,121.87,121.84,23.6454306]
[1741887535144,217.1,121.87,121.84,31.8527306]
[1741887535528,217.1,121.87,121.86,23.6454306]
[1741887536517,217.1,121.87,121.86,31.8515306]
[1741887536920,0.063,121.88,121.86,136.63912277]
[1741887537141,0.063,121.88,121.87,23.78759217]
[1741887538449,6.1738,121.94,121.91,8.2027]
[1741887538450,0.063,121.94,121.91,8.2027]
[1741887538634,0.063,121.94,121.93,23.6454306]
[1741887540847,0.063,121.94,121.93,31.8468306]
[1741887541041,0.063,121.94,121.93,23.6454306]
[1741887541455,0.063,121.94,121.93,32.13115374]
[1741887542530,0.063,121.94,121.93,23.6454306]
[1741887543355,0.063,121.94,121.92,23.6454306]
[1741887543653,0.063,121.94,121.93,23.6454306]
[1741887544327,0.063,121.94,121.93,37.84135954]
[1741887544546,0.063,121.94,121.9,117.82536157]
[1741887544746,0.063,121.94,121.93,37.84135954]
[1741887549150,0.063,121.94,121.93,46.04275954]
[1741887549332,0.063,121.94,121.93,358.04275954]
[1741887549529,0.063,121.94,121.93,439.18492111]
[1741887550650,0.063,121.94,121.93,127.04275954]
[1741887552352,0.063,121.94,121.93,127.18492111]
[1741887553539,0.063,121.94,121.93,439.18492111]
[1741887554859,0.063,121.94,121.93,118.84135954]
[1741887555369,0.063,121.94,121.93,127.04275954]
[1741887555540,0.063,121.94,121.93,118.84135954]
[1741887556359,0.063,121.94,121.93,127.04275954]
[1741887556539,0.063,121.94,121.93,118.84135954]
[1741887556879,0.063,121.94,121.93,127.04275954]
[1741887557842,0.063,121.94,121.93,439.04275954]
[1741887559652,0.063,121.94,121.93,118.84135954]
[1741887559966,0.063,121.94,121.93,127.04275954]
[1741887561968,0.063,121.94,121.93,126.54275954]
[1741887562148,0.063,121.94,121.93,127.04275954]
[1741887562348,0.063,121.94,121.93,118.84135954]
[1741887562657,0.063,121.94,121.93,430.84135954]
[1741887563166,0.063,121.94,121.93,118.84135954]
[1741887563556,0.063,121.94,121.88,90.8957]
[1741887563751,37.90435954,121.94,121.9,37.84135954]
[1741887563970,37.84135954,121.92,121.88,37.87135954]
[1741887564267,8.46,121.91,121.88,0.03]
[1741887564451,32.13919389,121.91,121.88,0.03]
[1741887564659,6.0645,121.89,121.88,0.03]
[1741887565050,29.74369389,121.89,121.88,0.03]
[1741887565449,56.59744275,121.89,121.88,0.03]
[1741887565667,18.64964886,121.88,121.84,0.03]
[1741887565869,42.32884275,121.88,121.84,0.03]
[1741887566263,56.56096225,121.88,121.84,0.03]
[1741887567473,32.91824886,121.89,121.84,37.94131339]
[1741887567678,70.82956225,121.89,121.84,37.94131339]
[1741887568274,70.82956225,121.89,121.84,0.03]
[1741887568453,70.82956225,121.89,121.84,37.94131339]
[1741887569169,70.82956225,121.89,121.88,0.03]
[1741887569747,91.62408539,121.89,121.84,0.03]
[1741887569955,37.91131339,121.86,121.84,0.03]
[1741887570166,46.37131339,121.86,121.84,0.03]
[1741887570377,8.46,121.86,121.84,0.03]
[1741887570888,8.46,121.86,121.84,37.94131339]
[1741887571175,22.7286,121.89,121.85,37.91131339]
[1741887571373,6.0645,121.89,121.87,37.91131339]
[1741887571551,216.92,121.9,121.88,37.91131339]
[1741887571895,216.92,121.9,121.89,37.91131339]
[1741887573867,0.063,121.94,121.89,46.11541339]
[1741887574059,0.063,121.94,121.93,37.91131339]
[1741887574963,0.063,121.94,121.92,37.91131339]
[1741887575168,0.063,121.94,121.93,37.91131339]
[1741887576086,0.063,121.94,121.91,37.91131339]
[1741887576787,0.063,121.94,121.92,37.91131339]
[1741887576971,0.063,121.94,121.91,37.91131339]
[1741887579486,0.063,121.94,121.93,37.91131339]
[1741887580463,0.063,121.94,121.92,8.202]
[1741887580661,0.063,121.94,121.93,37.91131339]
[1741887581893,0.063,121.94,121.92,37.91131339]
[1741887582564,0.063,121.94,121.91,37.91131339]
[1741887582965,37.91131339,121.93,121.88,37.94131339]
[1741887583690,44.52601339,121.94,121.89,37.91131339]
[1741887583863,37.91131339,121.93,121.88,37.94131339]
[1741887584064,8.202,121.92,121.88,0.03]
[1741887584282,8.202,121.92,121.88,37.94131339]
[1741887584483,8.202,121.92,121.89,37.91131339]
[1741887585908,6.6147,121.94,121.91,37.91131339]
[1741887586197,0.063,121.94,121.93,37.91131339]
[1741887587084,0.063,121.94,121.93,46.11271339]
[1741887587295,0.063,121.94,121.93,37.91131339]
[1741887587791,0.063,121.94,121.92,37.91131339]
[1741887588287,0.063,121.94,121.92,23.65617629]
[1741887588688,0.063,121.94,121.9,23.65617629]
[1741887589267,23.71917629,121.94,121.89,23.65617629]
[1741887589468,23.65617629,121.93,121.89,23.65617629]
[1741887589694,29.78097629,121.94,121.89,23.65617629]
[1741887590074,8.2014,121.93,121.89,23.65617629]
[1741887590390,8.2014,121.93,121.89,37.87148]
[1741887590796,6.1248,121.94,121.9,37.87148]
[1741887591001,52.19728,121.94,121.89,37.87148]
[1741887592093,46.07398,121.92,121.88,0.03]
[1741887592390,8.2025,121.92,121.88,37.90148]
[1741887592596,8.46,121.93,121.9,37.87148]
[1741887593006,8.46,121.93,121.89,37.87148]
[1741887593381,8.46,121.93,121.91,37.87148]
[1741887593779,8.46,121.93,121.88,0.03]
[1741887593780,8.46,121.93,121.88,81.03]
[1741887593991,16.6615,121.93,121.89,37.87148]
[1741887594693,8.2015,121.93,121.89,37.87148]
[1741887594888,8.2015,121.93,121.88,0.03]
[1741887594889,37.87148,121.92,121.88,0.03]
[1741887595196,37.87148,121.91,121.88,0.03]
[1741887596194,37.87148,121.91,121.88,37.90148]
[1741887596195,8.2034,121.91,121.88,37.90148]
[1741887596388,6.1248,121.94,121.88,37.90148]
[1741887596389,8.2023,121.92,121.88,37.90148]
[1741887596594,8.2016,121.93,121.88,37.90148]
[1741887596899,8.2016,121.93,121.9,37.87148]
[1741887597079,8.2016,121.93,121.89,37.87148]
[1741887598011,6.1248,121.94,121.9,37.87148]
[1741887598381,14.3257,121.94,121.9,37.87148]
[1741887598804,14.3257,121.94,121.89,312.0]
[1741887598987,37.87148,121.9,121.88,0.03]
[1741887599186,8.46,121.89,121.88,0.03]
[1741887599383,116.9275,121.94,121.88,0.03]
[1741887599578,8.46,121.93,121.88,37.90148]
[1741887599997,16.6615,121.93,121.88,37.90148]
[1741887600200,8.46,121.93,121.88,8.2347]
[1741887600393,8.46,121.93,121.91,37.87148]
[1741887600703,8.46,121.93,121.9,37.87148]
[1741887601002,0.063,121.94,121.92,37.87148]
[1741887601509,0.063,121.94,121.93,37.87148]
[1741887601888,0.063,122.0,121.96,8.1994]
[1741887602085,0.063,122.0,121.99,37.87148]
[1741887602407,0.063,122.0,121.98,37.87148]
[1741887602794,0.063,122.0,121.96,37.87148]
[1741887603107,8.2597,122.0,121.96,37.87148]
[1741887603310,8.2597,122.0,121.94,9.7479]
[1741887603690,54.59118,122.0,121.93,320.2013]
[1741887603894,54.59118,122.0,121.95,37.87148]
[1741887605007,8.523,122.0,121.97,37.87148]
[1741887605213,0.063,122.0,121.99,37.87148]
[1741887609310,0.063,122.0,121.98,37.87148]
[1741887610025,0.063,122.0,121.97,37.87148]
[1741887610805,0.063,122.0,121.99,37.87148]
[1741887611506,0.063,122.0,121.99,38.01364157]
[1741887611707,0.063,122.0,121.99,39.56734157]
[1741887612114,0.063,122.03,122.0,0.28432314]
[1741887612312,0.063,122.03,122.02,37.87148]
[1741887613014,0.063,122.03,122.02,38.01364157]
[1741887613595,0.063,122.03,122.02,37.87148]
[1741887614430,0.063,122.03,121.97,0.28432314]
[1741887614606,0.063,122.03,121.99,37.87148]
[1741887614924,0.063,122.03,122.01,37.87148]
[1741887615120,0.063,122.03,122.02,37.87148]
[1741887618007,0.063,122.03,122.01,37.87148]
[1741887618215,0.063,122.03,121.99,37.87148]
[1741887618534,0.063,122.03,122.0,37.87148]
[1741887619023,0.063,122.03,121.99,37.87148]
[1741887619221,0.063,122.03,122.0,37.87148]
[1741887620626,0.063,122.03,122.01,37.87148]
[1741887621305,0.063,122.03,122.0,37.87148]
[1741887622904,0.063,122.03,121.96,1.5761]
[1741887623110,37.87148,122.02,121.97,37.87148]
[1741887623304,37.87148,122.02,121.95,37.87148]
[1741887623305,37.87148,122.0,121.95,37.87148]
[1741887623524,37.87148,121.98,121.94,37.90148]
[1741887623833,37.87148,121.99,121.94,37.90148]
[1741887624207,37.87148,121.98,121.94,0.03]
[1741887624418,254.71148,121.97,121.94,0.03]
[1741887624714,216.84,121.97,121.94,0.03]
[1741887624928,8.1994,121.96,121.94,0.03]
[1741887626533,37.87148,121.95,121.94,0.03]
[1741887627314,54.51088,121.96,121.94,0.03]
[1741887627622,8.44,121.96,121.94,0.03]
[1741887628210,231.307,121.97,121.94,37.90148]
[1741887628412,231.307,121.97,121.94,0.03]
[1741887629031,231.307,121.97,121.94,37.90148]
[1741887629434,231.307,121.97,121.94,0.03]
[1741887630312,223.1082,121.97,121.94,37.90148]
[1741887630508,216.84,121.97,121.95,37.87148]
[1741887630715,216.84,121.97,121.96,37.87148]
[1741887631019,216.84,121.97,121.96,38.01364157]
[1741887631219,216.84,121.97,121.95,8.2]
[1741887631533,216.84,121.97,121.96,37.87148]
[1741887631724,216.84,121.97,121.96,38.01364157]
[1741887631926,0.063,122.03,121.97,0.14216157]
[1741887632118,0.063,122.03,122.01,37.87148]
[1741887632323,0.063,122.03,122.02,37.87148]
[1741887632813,0.063,122.03,122.01,37.87148]
[1741887633019,0.063,122.03,121.99,0.14216157]
[1741887633020,0.063,122.03,122.0,8.1964]
[1741887633221,0.063,122.03,122.0,37.87148]
[1741887633422,0.063,122.03,122.02,37.87148]
[1741887634637,0.063,122.03,122.01,37.87148]
[1741887635017,0.063,122.03,122.02,37.87148]
[1741887635217,0.063,122.03,122.02,38.01364157]
[1741887636638,0.063,122.03,122.02,37.87148]
[1741887637636,0.063,122.03,122.02,46.06678]
[1741887637841,0.063,122.03,122.02,46.20894157]
[1741887639144,0.063,122.03,122.02,37.87148]
[1741887639727,0.063,122.03,122.02,38.01364157]
[1741887640342,0.063,122.03,122.02,46.20894157]
[1741887641231,0.063,122.03,122.02,46.35110314]
[1741887641737,0.063,122.06,122.05,20.14216157]
[1741887641943,0.063,122.07,122.05,58.15580314]
[1741887642115,0.063,122.07,122.06,38.01364157]
[1741887643420,0.063,122.07,122.06,38.15580314]
[1741887643628,0.063,122.07,122.06,46.34840314]
[1741887644345,0.063,122.07,122.06,408.34840314]
[1741887644843,0.063,122.07,122.06,358.34840314]
[1741887645522,0.063,122.07,122.06,408.34840314]
[1741887646047,0.063,122.1,122.09,0.14216157]
[1741887646229,0.063,122.1,122.09,38.01364157]
[1741887647247,0.063,122.1,122.09,38.15580314]
[1741887647542,0.063,122.1,122.09,46.34640314]
[1741887647746,0.063,122.1,122.09,38.15580314]
[1741887648436,0.063,122.1,122.09,46.34640314]
[1741887648837,0.063,122.1,122.09,38.15580314]
[1741887649040,0.063,122.1,122.09,38.01364157]
[1741887649220,0.063,122.1,122.09,37.87148]
[1741887649426,0.063,122.1,122.07,37.87148]
[1741887649845,0.063,122.1,122.08,37.87148]
[1741887650039,0.063,122.1,122.07,37.87148]
[1741887651219,0.063,122.1,122.04,45.88528]
[1741887651425,0.063,122.1,122.06,37.87148]
[1741887651625,0.063,122.1,122.07,37.87148]
[1741887652028,0.063,122.1,122.09,38.15580314]
[1741887652344,0.063,122.1,122.09,388.02728314]
[1741887652535,0.063,122.1,122.09,350.01364157]
[1741887652934,0.063,122.1,122.08,8.44]
[1741887653137,0.063,122.1,122.09,37.87148]
[1741887654750,0.063,122.1,122.09,38.01364157]
[1741887655145,0.063,122.1,122.09,46.20424157]
[1741887655346,0.063,122.1,122.09,38.01364157]
[1741887656146,0.063,122.1,122.09,37.87148]
[1741887660465,0.063,122.1,122.07,37.87148]
[1741887660751,0.063,122.1,122.06,0.03]
[1741887660965,0.063,122.1,122.09,37.87148]
[1741887661252,0.063,122.1,122.06,37.90148]
[1741887661449,216.66,122.09,122.06,37.90148]
[1741887661826,216.66,122.09,122.07,37.87148]
[1741887662030,224.8509,122.09,122.08,37.87148]
[1741887662235,216.66,122.09,122.08,37.87148]
[1741887662757,224.8506,122.09,122.08,37.87148]
[1741887663869,224.8506,122.09,122.07,37.87148]